[Event "FIDE Grand Swiss 2023"]
[Site "Villa Marina, Douglas, Isle of Man"]
[Date "2023.10.25"]
[Round "1.40"]
[White "Bluebaum, Matthias"]
[Black "Vokhidov, Shamsiddin"]
[Result "1/2-1/2"]
[WhiteElo "2668"]
[BlackElo "2578"]
[EventDate "2023.10.25"]
[ECO "D38"]
[PlyCount "219"]
[BlackFideId "14204223"]
[TimeControl "40/100 + 20/50 + 15 + 30s/move"]
[WhiteFideId "24651516"]

1.d4 {[%clk 01:40:57] [%emt 00:00:02]} 1...Nf6 {[%clk 01:40:53] [%emt 00:00:07]} 
2.c4 {[%clk 01:41:19] [%emt 00:00:08]} 2...e6 {[%clk 01:41:17] [%emt 00:00:05]} 
3.Nf3 {[%clk 01:41:38] [%emt 00:00:11]} 3...d5 {[%clk 01:41:41] [%emt 00:00:07]} 
4.Nc3 {[%clk 01:41:56] [%emt 00:00:13]} 4...Bb4 {[%clk 01:42:04] [%emt
00:00:06]} 5.Bg5 {[%clk 01:41:53] [%emt 00:00:33]} 5...h6 {[%clk 01:40:54] [%emt
00:01:40]} 6.Bxf6 {[%clk 01:42:08] [%emt 00:00:15]} 6...Qxf6 {[%clk 01:41:19]
[%emt 00:00:05]} 7.e3 {[%clk 01:42:30] [%emt 00:00:07]} 7...O-O {[%clk 01:41:41]
[%emt 00:00:08]} 8.a3 {[%clk 01:42:25] [%emt 00:00:36]} 8...Bxc3+ {[%clk
01:40:49] [%emt 00:01:22]} 9.bxc3 {[%clk 01:42:45] [%emt 00:00:10]} 9...c5 
{[%clk 01:34:37] [%emt 00:06:42]} 10.g4 {[%clk 01:42:36] [%emt 00:00:39]} 
10...Nc6 {[%clk 01:22:53] [%emt 00:12:14]} 11.h4 {[%clk 01:42:23] [%emt
00:00:43]} 11...Qd8 {[%clk 01:22:30] [%emt 00:00:53]} 12.g5 {[%clk 01:42:17]
[%emt 00:00:37]} 12...h5 {[%clk 01:22:18] [%emt 00:00:42]} 13.Bg2 {[%clk
01:41:01] [%emt 00:01:45]} 13...cxd4 {[%clk 01:09:39] [%emt 00:13:09]} 14.cxd4 
{[%clk 01:36:01] [%emt 00:05:30]} 14...g6 {[%clk 00:57:43] [%emt 00:12:26]} 
15.O-O {[%clk 01:31:24] [%emt 00:05:07]} 15...b6 {[%clk 00:57:19] [%emt
00:00:55]} 16.Nd2 {[%clk 01:09:24] [%emt 00:22:29]} 16...Bb7 {[%clk 00:54:50]
[%emt 00:02:59]} 17.cxd5 {[%clk 01:03:02] [%emt 00:06:52]} 17...exd5 {[%clk
00:55:12] [%emt 00:00:09]} 18.Qf3 {[%clk 01:03:29] [%emt 00:00:02]} 18...Ne7 
{[%clk 00:51:15] [%emt 00:04:27]} 19.Rfc1 {[%clk 00:58:22] [%emt 00:05:37]} 
19...Rc8 {[%clk 00:47:18] [%emt 00:04:27]} 20.Qf4 {[%clk 00:52:19] [%emt
00:06:34]} 20...Qd7 {[%clk 00:39:19] [%emt 00:08:29]} 21.Kh2 {[%clk 00:50:22]
[%emt 00:02:26]} 21...Qf5 {[%clk 00:30:53] [%emt 00:08:56]} 22.Qxf5 {[%clk
00:32:46] [%emt 00:18:06]} 22...Nxf5 {[%clk 00:29:53] [%emt 00:01:30]} 23.Bh3 
{[%clk 00:33:13] [%emt 00:00:03]} 23...Rxc1 {[%clk 00:29:04] [%emt 00:01:19]} 
24.Rxc1 {[%clk 00:33:42] [%emt 00:00:02]} 24...Rc8 {[%clk 00:27:11] [%emt
00:02:22]} 25.Rxc8+ {[%clk 00:33:43] [%emt 00:00:29]} 25...Bxc8 {[%clk 00:27:38]
[%emt 00:00:03]} 26.Nb1 {[%clk 00:34:10] [%emt 00:00:04]} 26...Ne7 {[%clk
00:18:58] [%emt 00:09:10]} 27.Bxc8 {[%clk 00:32:35] [%emt 00:02:04]} 27...Nxc8 
{[%clk 00:19:26] [%emt 00:00:02]} 28.Nc3 {[%clk 00:32:59] [%emt 00:00:06]} 
28...Ne7 {[%clk 00:19:52] [%emt 00:00:04]} 29.Nb5 {[%clk 00:27:38] [%emt
00:05:51]} 29...a5 {[%emt 00:04:15]} 30.Nc7 {[%clk 00:27:21]} 30...Kg7 {[%clk
00:16:32] [%emt 00:00:53]} 31.Kg3 {[%clk 00:23:24] [%emt 00:04:26]} 31...Nf5+ 
{[%clk 00:14:21] [%emt 00:02:42]} 32.Kf4 {[%clk 00:13:35] [%emt 00:10:18]} 
32...Nxh4 {[%clk 00:13:50] [%emt 00:01:00]} 33.a4 {[%clk 00:14:02] [%emt
00:00:04]} 33...Nf5 {[%clk 00:03:52] [%emt 00:10:29]} 34.Nxd5 {[%clk 00:14:28]
[%emt 00:00:04]} 34...b5 {[%clk 00:04:19] [%emt 00:00:03]} 35.axb5 {[%clk
00:14:53] [%emt 00:00:04]} 35...a4 {[%clk 00:04:04] [%emt 00:00:45]} 36.Nc3 
{[%clk 00:11:19] [%emt 00:04:04]} 36...a3 {[%clk 00:04:33] [%emt 00:00:02]} 
37.b6 {[%clk 00:10:54] [%emt 00:00:54]} 37...Nd6 {[%clk 00:04:52] [%emt
00:00:11]} 38.e4 {[%clk 00:10:15] [%emt 00:01:09]} 38...Kf8 {[%clk 00:03:16]
[%emt 00:02:05]} 39.e5 {[%clk 00:10:16] [%emt 00:00:29]} 39...Nb7 {[%clk
00:03:45] [%emt 00:00:02]} 40.d5 {[%clk 00:10:29] [%emt 00:00:18]} 40...Ke7 
{[%clk 00:02:53] [%emt 00:01:21]} 41.Kg3 {[%clk 00:07:05] [%emt 00:03:54]} 
41...Nc5 {[%clk 00:41:13] [%emt 00:12:11]} 42.f4 {[%clk 00:55:39] [%emt
00:01:55]} 42...Kd8 {[%clk 00:35:48] [%emt 00:05:55]} 43.Kh4 {[%clk 00:53:42]
[%emt 00:02:27]} 43...Ke7 {[%clk 00:34:47] [%emt 00:01:32]} 44.f5 {[%clk
00:48:30] [%emt 00:05:41]} 44...gxf5 {[%clk 00:34:40] [%emt 00:00:36]} 45.Kxh5 
{[%clk 00:47:23] [%emt 00:01:38]} 45...f4 {[%clk 00:35:04] [%emt 00:00:06]} 
46.Kh4 {[%clk 00:39:16] [%emt 00:08:37]} 46...f3 {[%clk 00:32:24] [%emt
00:03:10]} 47.Kg3 {[%clk 00:37:41] [%emt 00:02:05]} 47...f2 {[%clk 00:31:33]
[%emt 00:01:21]} 48.Kg2 {[%clk 00:34:23] [%emt 00:03:48]} 48...Kd8 {[%clk
00:27:19] [%emt 00:04:44]} 49.g6 {[%clk 00:27:35] [%emt 00:07:18]} 49...fxg6 
{[%clk 00:27:38] [%emt 00:00:11]} 50.e6 {[%clk 00:28:02] [%emt 00:00:03]} 
50...Ke7 {[%clk 00:22:49] [%emt 00:05:19]} 51.Kxf2 {[%clk 00:24:25] [%emt
00:04:07]} 51...Ne4+ {[%clk 00:21:43] [%emt 00:01:36]} 52.Nxe4 {[%clk 00:15:07]
[%emt 00:09:48]} 52...a2 {[%clk 00:21:57] [%emt 00:00:17]} 53.b7 {[%clk
00:15:11] [%emt 00:00:26]} 53...a1=Q {[%clk 00:22:24] [%emt 00:00:03]} 54.d6+ 
{[%clk 00:15:39] [%emt 00:00:02]} 54...Kxe6 {[%clk 00:22:42] [%emt 00:00:11]} 
55.b8=Q {[%clk 00:16:04] [%emt 00:00:05]} 55...Qd4+ {[%clk 00:22:22] [%emt
00:00:50]} 56.Kf3 {[%clk 00:16:20] [%emt 00:00:14]} 56...Qd1+ {[%clk 00:17:32]
[%emt 00:05:19]} 57.Kf4 {[%clk 00:15:00] [%emt 00:01:51]} 57...Qc1+ {[%clk
00:16:42] [%emt 00:01:20]} 58.Kg4 {[%clk 00:15:07] [%emt 00:00:23]} 58...Qg1+ 
{[%clk 00:16:33] [%emt 00:00:38]} 59.Kh4 {[%clk 00:14:29] [%emt 00:01:08]} 
59...Qe1+ {[%clk 00:13:42] [%emt 00:03:22]} 60.Kh3 {[%clk 00:12:55] [%emt
00:02:04]} 60...Qe3+ {[%clk 00:07:48] [%emt 00:06:24]} 61.Ng3 {[%clk 00:13:20]
[%emt 00:00:05]} 61...Qd4 {[%clk 00:07:19] [%emt 00:00:58]} 62.Qg8+ {[%clk
00:10:31] [%emt 00:03:20]} 62...Kxd6 {[%clk 00:07:25] [%emt 00:00:24]} 63.Qxg6+ 
{[%clk 00:10:57] [%emt 00:00:04]} 63...Kc7 {[%clk 00:07:37] [%emt 00:00:18]} 
64.Qc2+ {[%clk 00:11:01] [%emt 00:00:26]} 64...Kd7 {[%clk 00:06:55] [%emt
00:01:11]} 65.Ne4 {[%clk 00:10:44] [%emt 00:00:47]} 65...Qh8+ {[%clk 00:06:53]
[%emt 00:00:33]} 66.Kg4 {[%clk 00:11:03] [%emt 00:00:11]} 66...Qg7+ {[%clk
00:06:23] [%emt 00:00:59]} 67.Kf5 {[%clk 00:10:47] [%emt 00:00:46]} 67...Qh7+ 
{[%clk 00:06:23] [%emt 00:00:30]} 68.Ke5 {[%clk 00:11:12] [%emt 00:00:05]} 
68...Qe7+ {[%clk 00:06:24] [%emt 00:00:29]} 69.Kd5 {[%clk 00:11:31] [%emt
00:00:11]} 69...Qf7+ {[%clk 00:05:03] [%emt 00:01:52]} 70.Kd4 {[%clk 00:11:26]
[%emt 00:00:34]} 70...Qg7+ {[%clk 00:05:25] [%emt 00:00:08]} 71.Kd3 {[%clk
00:11:53] [%emt 00:00:04]} 71...Qe5 {[%clk 00:04:19] [%emt 00:01:36]} 72.Qa4+ 
{[%clk 00:12:15] [%emt 00:00:09]} 72...Kc7 {[%clk 00:03:09] [%emt 00:01:40]} 
73.Qa7+ {[%clk 00:12:20] [%emt 00:00:24]} 73...Kc6 {[%clk 00:02:33] [%emt
00:01:05]} 74.Qa8+ {[%clk 00:12:28] [%emt 00:00:23]} 74...Kc7 {[%clk 00:02:37]
[%emt 00:00:26]} 75.Nc3 {[%clk 00:12:53] [%emt 00:00:05]} 75...Qf5+ {[%clk
00:02:17] [%emt 00:00:50]} 76.Kc4 {[%clk 00:13:06] [%emt 00:00:18]} 76...Qf1+ 
{[%clk 00:02:15] [%emt 00:00:30]} 77.Kb4 {[%clk 00:12:57] [%emt 00:00:39]} 
77...Qf4+ {[%clk 00:02:22] [%emt 00:00:24]} 78.Ne4 {[%clk 00:13:14] [%emt
00:00:13]} 78...Kd7 {[%clk 00:01:09] [%emt 00:01:43]} 79.Qd5+ {[%clk 00:13:36]
[%emt 00:00:08]} 79...Ke7 {[%clk 00:01:27] [%emt 00:00:12]} 80.Ka4 {[%clk
00:13:05] [%emt 00:01:01]} 80...Kf8 {[%clk 00:01:02] [%emt 00:00:54]} 81.Qe6 
{[%clk 00:12:56] [%emt 00:00:40]} 81...Qf7 {[%clk 00:14:37] [%emt 00:01:55]} 
82.Qh6+ {[%clk 00:28:17] [%emt 00:00:09]} 82...Qg7 {[%clk 00:14:51] [%emt
00:00:16]} 83.Qh4 {[%clk 00:27:59] [%emt 00:00:48]} 83...Qd4+ {[%clk 00:14:14]
[%emt 00:01:07]} 84.Kb3 {[%clk 00:28:23] [%emt 00:00:06]} 84...Qd5+ {[%clk
00:14:15] [%emt 00:00:29]} 85.Kc3 {[%clk 00:28:48] [%emt 00:00:04]} 85...Qa5+ 
{[%clk 00:13:50] [%emt 00:00:56]} 86.Kd4 {[%clk 00:29:12] [%emt 00:00:05]} 
86...Qb6+ {[%clk 00:14:01] [%emt 00:00:20]} 87.Kd3 {[%clk 00:29:23] [%emt
00:00:18]} 87...Qb5+ {[%clk 00:13:22] [%emt 00:01:10]} 88.Ke3 {[%clk 00:29:37]
[%emt 00:00:16]} 88...Qb6+ {[%clk 00:13:23] [%emt 00:00:29]} 89.Kf4 {[%clk
00:29:55] [%emt 00:00:11]} 89...Qc7+ {[%clk 00:13:39] [%emt 00:00:14]} 90.Kg4 
{[%clk 00:30:21] [%emt 00:00:05]} 90...Qd7+ {[%clk 00:13:33] [%emt 00:00:36]} 
91.Kf3 {[%clk 00:30:46] [%emt 00:00:05]} 91...Qf7+ {[%clk 00:13:16] [%emt
00:00:47]} 92.Kg2 {[%clk 00:31:12] [%emt 00:00:04]} 92...Qa2+ {[%clk 00:12:57]
[%emt 00:00:49]} 93.Nf2 {[%clk 00:31:34] [%emt 00:00:08]} 93...Qd5+ {[%clk
00:13:10] [%emt 00:00:17]} 94.Kg1 {[%clk 00:32:02] [%emt 00:00:02]} 94...Qe5 
{[%clk 00:13:15] [%emt 00:00:24]} 95.Qd8+ {[%clk 00:32:12] [%emt 00:00:21]} 
95...Kf7 {[%clk 00:13:44] [%emt 00:00:02]} 96.Qd3 {[%clk 00:32:35] [%emt
00:00:06]} 96...Qg5+ {[%clk 00:14:05] [%emt 00:00:08]} 97.Kf1 {[%clk 00:33:04]
[%emt 00:00:02]} 97...Qe5 {[%clk 00:14:12] [%emt 00:00:22]} 98.Ne4 {[%clk
00:33:29] [%emt 00:00:05]} 98...Qf4+ {[%clk 00:14:17] [%emt 00:00:26]} 99.Ke2 
{[%clk 00:33:58] [%emt 00:00:02]} 99...Qh2+ {[%clk 00:14:09] [%emt 00:00:37]} 
100.Kd1 {[%clk 00:34:24] [%emt 00:00:03]} 100...Qg1+ {[%clk 00:14:17] [%emt
00:00:22]} 101.Kc2 {[%clk 00:34:53] [%emt 00:00:02]} 101...Qh2+ {[%clk 00:14:38]
[%emt 00:00:09]} 102.Kb3 {[%clk 00:35:20] [%emt 00:00:03]} 102...Qb8+ {[%clk
00:15:01] [%emt 00:00:07]} 103.Kc4 {[%clk 00:35:46] [%emt 00:00:04]} 103...Qc7+ 
{[%clk 00:15:03] [%emt 00:00:27]} 104.Nc5 {[%clk 00:36:15] [%emt 00:00:02]} 
104...Qf4+ {[%clk 00:15:23] [%emt 00:00:10]} 105.Kb5 {[%clk 00:36:43] [%emt
00:00:01]} 105...Qb8+ {[%clk 00:15:19] [%emt 00:00:34]} 106.Kc4 {[%clk 00:37:12]
[%emt 00:00:02]} 106...Qf4+ {[%clk 00:15:42] [%emt 00:00:06]} 107.Kd5 {[%clk
00:37:41] [%emt 00:00:02]} 107...Qg5+ {[%clk 00:15:53] [%emt 00:00:18]} 108.Kc6 
{[%clk 00:38:08] [%emt 00:00:04]} 108...Qg6+ {[%clk 00:16:17] [%emt 00:00:06]} 
109.Kb7 {[%clk 00:38:34] [%emt 00:00:03]} 109...Qxd3 {[%clk 00:16:42] [%emt
00:00:05]} 110.Nxd3 {[%clk 00:38:31] [%emt 00:00:02]} 1/2-1/2

[Event "FIDE Grand Swiss 2023"]
[Site "Villa Marina, Douglas, Isle of Man"]
[Date "2023.10.25"]
[Round "1.41"]
[White "Fier, Alexandr"]
[Black "Wojtaszek, Radoslaw"]
[Result "1/2-1/2"]
[WhiteElo "2574"]
[BlackElo "2668"]
[EventDate "2023.10.25"]
[ECO "C53"]
[PlyCount "60"]
[BlackFideId "1118358"]
[TimeControl "40/100 + 20/50 + 15 + 30s/move"]
[WhiteFideId "2107139"]

1.e4 {[%clk 01:40:57] [%emt 00:00:02]} 1...e5 {[%clk 01:40:55] [%emt 00:00:05]} 
2.Nf3 {[%clk 01:41:22] [%emt 00:00:05]} 2...Nc6 {[%clk 01:41:21] [%emt
00:00:04]} 3.Bc4 {[%clk 01:41:47] [%emt 00:00:04]} 3...Bc5 {[%clk 01:41:45]
[%emt 00:00:06]} 4.c3 {[%clk 01:42:14] [%emt 00:00:04]} 4...Nf6 {[%clk 01:42:09]
[%emt 00:00:06]} 5.d4 {[%clk 01:42:40] [%emt 00:00:03]} 5...exd4 {[%clk
01:42:29] [%emt 00:00:11]} 6.e5 {[%clk 01:43:06] [%emt 00:00:04]} 6...d5 {[%clk
01:42:47] [%emt 00:00:12]} 7.Be2 {[%clk 01:43:33] [%emt 00:00:03]} 7...Ne4 
{[%clk 01:42:18] [%emt 00:00:59]} 8.cxd4 {[%clk 01:43:58] [%emt 00:00:05]} 
8...Bb6 {[%clk 01:40:05] [%emt 00:02:42]} 9.Nc3 {[%clk 01:44:00] [%emt
00:00:28]} 9...O-O {[%clk 01:40:10] [%emt 00:00:25]} 10.O-O {[%clk 01:44:25]
[%emt 00:00:06]} 10...Be6 {[%clk 01:40:08] [%emt 00:00:31]} 11.Be3 {[%clk
01:44:49] [%emt 00:00:07]} 11...f6 {[%clk 01:39:15] [%emt 00:01:23]} 12.exf6 
{[%clk 01:45:14] [%emt 00:00:05]} 12...Qxf6 {[%clk 01:37:24] [%emt 00:02:21]} 
13.Bd3 {[%clk 01:42:37] [%emt 00:03:07]} 13...Nxc3 {[%clk 01:26:52] [%emt
00:11:02]} 14.bxc3 {[%clk 01:43:03] [%emt 00:00:04]} 14...Bg4 {[%clk 01:26:53]
[%emt 00:00:28]} 15.Be2 {[%clk 01:43:27] [%emt 00:00:07]} 15...Rae8 {[%clk
01:26:39] [%emt 00:00:44]} 16.a4 {[%clk 01:43:51] [%emt 00:00:06]} 16...Qd6 
{[%clk 01:23:52] [%emt 00:03:16]} 17.Re1 {[%clk 01:36:49] [%emt 00:07:33]} 
17...h6 {[%clk 01:12:49] [%emt 00:11:33]} 18.Ra2 {[%clk 01:19:12] [%emt
00:18:07]} 18...Ba5 {[%clk 01:11:23] [%emt 00:01:56]} 19.Rc2 {[%clk 01:12:44]
[%emt 00:06:58]} 19...Qa3 {[%clk 01:07:29] [%emt 00:04:23]} 20.Qa1 {[%clk
01:09:55] [%emt 00:03:20]} 20...Qxa1 {[%clk 01:04:33] [%emt 00:03:26]} 21.Rxa1 
{[%clk 01:10:13] [%emt 00:00:12]} 21...Ne7 {[%clk 00:52:36] [%emt 00:12:27]} 
22.h3 {[%clk 01:09:18] [%emt 00:01:25]} 22...Bf5 {[%clk 00:50:49] [%emt
00:02:17]} 23.Rcc1 {[%clk 01:09:44] [%emt 00:00:04]} 23...Ng6 {[%clk 00:51:11]
[%emt 00:00:07]} 24.c4 {[%clk 01:04:16] [%emt 00:06:00]} 24...dxc4 {[%clk
00:45:37] [%emt 00:06:03]} 25.Bxc4+ {[%clk 01:03:08] [%emt 00:01:38]} 25...Kh8 
{[%clk 00:44:05] [%emt 00:02:02]} 26.d5 {[%clk 00:39:17] [%emt 00:24:22]} 
26...Ne5 {[%clk 00:35:35] [%emt 00:09:00]} 27.Nxe5 {[%clk 00:37:44] [%emt
00:02:02]} 27...Rxe5 {[%clk 00:36:03] [%emt 00:00:02]} 28.Bb3 {[%clk 00:25:38]
[%emt 00:12:37]} 28...Be4 {[%clk 00:31:09] [%emt 00:05:24]} 29.Bxa7 {[%clk
00:21:46] [%emt 00:04:22]} 29...Bxd5 {[%clk 00:23:39] [%emt 00:07:59]} 30.Bxd5 
{[%clk 00:17:56] [%emt 00:04:20]} 30...Rxd5 {[%clk 00:23:58] [%emt 00:00:11]} 1/2-1/2

[Event "FIDE Grand Swiss 2023"]
[Site "Villa Marina, Douglas, Isle of Man"]
[Date "2023.10.25"]
[Round "1.42"]
[White "Niemann, Hans Moke"]
[Black "Amar, Elham"]
[Result "1-0"]
[WhiteElo "2667"]
[BlackElo "2568"]
[EventDate "2023.10.25"]
[ECO "B67"]
[PlyCount "75"]
[BlackFideId "1533533"]
[TimeControl "40/100 + 20/50 + 15 + 30s/move"]
[WhiteFideId "2093596"]

1.e4 {[%clk 01:40:48] [%emt 00:00:10]} 1...c5 {[%clk 01:40:55] [%emt 00:00:07]} 
2.Nf3 {[%clk 01:40:46] [%emt 00:00:30]} 2...d6 {[%clk 01:41:20] [%emt 00:00:06]} 
3.d4 {[%clk 01:33:42] [%emt 00:07:34]} 3...cxd4 {[%clk 01:41:38] [%emt
00:00:12]} 4.Nxd4 {[%clk 01:33:58] [%emt 00:00:12]} 4...Nf6 {[%clk 01:42:00]
[%emt 00:00:09]} 5.Nc3 {[%clk 01:34:07] [%emt 00:00:22]} 5...Nc6 {[%clk
01:42:22] [%emt 00:00:08]} 6.Bg5 {[%clk 01:31:17] [%emt 00:03:19]} 6...e6 
{[%clk 01:42:16] [%emt 00:00:38]} 7.Qd2 {[%clk 01:25:41] [%emt 00:06:05]} 
7...a6 {[%clk 01:42:35] [%emt 00:00:12]} 8.O-O-O {[%clk 01:25:32] [%emt
00:00:37]} 8...Bd7 {[%clk 01:42:58] [%emt 00:00:09]} 9.f3 {[%clk 01:24:31] [%emt
00:01:29]} 9...Be7 {[%clk 01:43:19] [%emt 00:00:10]} 10.Kb1 {[%clk 01:20:08]
[%emt 00:04:52]} 10...Nxd4 {[%clk 01:43:34] [%emt 00:00:16]} 11.Qxd4 {[%clk
01:20:31] [%emt 00:00:07]} 11...Qc7 {[%clk 01:43:58] [%emt 00:00:06]} 12.Qd2 
{[%clk 01:15:10] [%emt 00:05:50]} 12...b5 {[%clk 01:44:18] [%emt 00:00:12]} 
13.h4 {[%clk 01:12:50] [%emt 00:02:49]} 13...h6 {[%clk 01:44:36] [%emt
00:00:12]} 14.Be3 {[%clk 01:11:12] [%emt 00:02:06]} 14...h5 {[%clk 01:45:00]
[%emt 00:00:08]} 15.Bg5 {[%clk 01:08:09] [%emt 00:03:33]} 15...b4 {[%clk
01:44:49] [%emt 00:00:42]} 16.Ne2 {[%clk 01:07:36] [%emt 00:01:01]} 16...a5 
{[%clk 01:45:11] [%emt 00:00:10]} 17.c4 {[%clk 01:06:36] [%emt 00:01:31]} 
17...e5 {[%clk 00:51:49] [%emt 00:53:50]} 18.Ng3 {[%clk 01:03:17] [%emt
00:03:48]} 18...Rd8 {[%clk 00:46:48] [%emt 00:05:33]} 19.Be2 {[%clk 00:56:01]
[%emt 00:07:44]} 19...Be6 {[%clk 00:43:46] [%emt 00:03:33]} 20.Nf5 {[%clk
00:48:54] [%emt 00:07:37]} 20...Bxf5 {[%clk 00:43:24] [%emt 00:00:53]} 21.exf5 
{[%clk 00:49:15] [%emt 00:00:08]} 21...d5 {[%clk 00:21:20] [%emt 00:22:35]} 
22.Bxf6 {[%clk 00:49:33] [%emt 00:00:11]} 22...Bxf6 {[%clk 00:21:28] [%emt
00:00:23]} 23.cxd5 {[%clk 00:49:55] [%emt 00:00:07]} 23...O-O {[%clk 00:19:05]
[%emt 00:02:53]} 24.d6 {[%clk 00:48:03] [%emt 00:02:22]} 24...Qd7 {[%clk
00:13:54] [%emt 00:05:41]} 25.g4 {[%clk 00:43:04] [%emt 00:05:29]} 25...e4 
{[%clk 00:13:47] [%emt 00:00:38]} 26.Qd5 {[%clk 00:41:16] [%emt 00:02:17]} 
26...b3 {[%clk 00:06:56] [%emt 00:07:21]} 27.axb3 {[%clk 00:39:52] [%emt
00:01:54]} 27...Rb8 {[%clk 00:00:50] [%emt 00:06:37]} 28.g5 {[%clk 00:38:58]
[%emt 00:01:23]} 28...a4 {[%clk 00:00:32] [%emt 00:00:48]} 29.gxf6 {[%clk
00:38:19] [%emt 00:01:10]} 29...axb3 {[%clk 00:00:57] [%emt 00:00:05]} 30.Qd4 
{[%clk 00:34:50] [%emt 00:03:58]} 30...Qxf5 {[%clk 00:00:52] [%emt 00:00:36]} 
31.Rhg1 {[%clk 00:34:30] [%emt 00:00:49]} 31...Qa5 {[%clk 00:00:39] [%emt
00:00:44]} 32.Rxg7+ {[%clk 00:34:47] [%emt 00:00:12]} 32...Kh8 {[%clk 00:01:06]
[%emt 00:00:03]} 33.Rg5 {[%clk 00:32:59] [%emt 00:02:17]} 33...Qa2+ {[%clk
00:01:27] [%emt 00:00:11]} 34.Kc1 {[%clk 00:33:24] [%emt 00:00:05]} 34...Rfc8+ 
{[%clk 00:00:33] [%emt 00:01:24]} 35.Kd2 {[%clk 00:33:46] [%emt 00:00:07]} 
35...Rc2+ {[%clk 00:00:39] [%emt 00:00:25]} 36.Ke3 {[%clk 00:34:06] [%emt
00:00:09]} 36...Kh7 {[%clk 00:00:33] [%emt 00:00:37]} 37.Qxe4+ {[%clk 00:34:27]
[%emt 00:00:08]} 37...Kh6 {[%clk 00:00:58] [%emt 00:00:05]} 38.Rxh5+ {[%clk
00:34:45] [%emt 00:00:12]} 1-0

[Event "FIDE Grand Swiss 2023"]
[Site "Villa Marina, Douglas, Isle of Man"]
[Date "2023.10.25"]
[Round "1.43"]
[White "Kozak, Adam"]
[Black "Volokitin, Andrei"]
[Result "1/2-1/2"]
[WhiteElo "2566"]
[BlackElo "2664"]
[EventDate "2023.10.25"]
[ECO "E51"]
[PlyCount "82"]
[BlackFideId "14107090"]
[TimeControl "40/100 + 20/50 + 15 + 30s/move"]
[WhiteFideId "753246"]

1.d4 {[%clk 01:40:48] [%emt 00:00:02]} 1...Nf6 {[%clk 01:40:51] [%emt 00:00:18]} 
2.c4 {[%clk 01:40:32] [%emt 00:00:46]} 2...e6 {[%clk 01:41:00] [%emt 00:00:21]} 
3.Nf3 {[%clk 01:40:50] [%emt 00:00:13]} 3...d5 {[%clk 01:41:10] [%emt 00:00:20]} 
4.Nc3 {[%clk 01:41:11] [%emt 00:00:09]} 4...Bb4 {[%clk 01:40:44] [%emt
00:00:56]} 5.e3 {[%clk 01:41:32] [%emt 00:00:09]} 5...O-O {[%clk 01:40:01] [%emt
00:01:12]} 6.Bd2 {[%clk 01:41:47] [%emt 00:00:15]} 6...b6 {[%clk 01:40:09] [%emt
00:00:22]} 7.Rc1 {[%clk 01:42:09] [%emt 00:00:08]} 7...Bb7 {[%clk 01:32:22]
[%emt 00:08:18]} 8.a3 {[%clk 01:41:28] [%emt 00:01:12]} 8...Be7 {[%clk 01:22:32]
[%emt 00:10:20]} 9.cxd5 {[%clk 01:41:49] [%emt 00:00:08]} 9...exd5 {[%clk
01:21:57] [%emt 00:01:05]} 10.g3 {[%clk 01:42:12] [%emt 00:00:06]} 10...a5 
{[%clk 01:03:01] [%emt 00:19:26]} 11.Bg2 {[%clk 01:40:04] [%emt 00:02:39]} 
11...Ba6 {[%clk 01:02:44] [%emt 00:00:47]} 12.Ne5 {[%clk 01:29:32] [%emt
00:11:00]} 12...Bd6 {[%clk 00:39:11] [%emt 00:24:05]} 13.Nxd5 {[%clk 01:03:07]
[%emt 00:26:55]} 13...Bxe5 {[%clk 00:38:03] [%emt 00:01:38]} 14.Nxf6+ {[%clk
01:02:55] [%emt 00:00:41]} 14...Bxf6 {[%clk 00:38:30] [%emt 00:00:03]} 15.Bxa8 
{[%clk 01:03:13] [%emt 00:00:12]} 15...c6 {[%clk 00:24:50] [%emt 00:14:10]} 
16.Qf3 {[%clk 00:58:53] [%emt 00:04:49]} 16...Re8 {[%clk 00:24:36] [%emt
00:00:45]} 17.Kd1 {[%clk 00:48:02] [%emt 00:11:22]} 17...Bd3 {[%clk 00:23:31]
[%emt 00:01:34]} 18.Qg2 {[%clk 00:38:08] [%emt 00:10:24]} 18...Be4 {[%clk
00:11:44] [%emt 00:12:18]} 19.f3 {[%clk 00:37:03] [%emt 00:01:34]} 19...Bd5 
{[%clk 00:12:10] [%emt 00:00:04]} 20.Rc3 {[%clk 00:34:26] [%emt 00:03:08]} 
20...b5 {[%clk 00:12:34] [%emt 00:00:06]} 21.e4 {[%clk 00:08:45] [%emt
00:26:11]} 21...Bc4 {[%clk 00:12:28] [%emt 00:00:35]} 22.d5 {[%clk 00:07:35]
[%emt 00:01:41]} 22...cxd5 {[%clk 00:11:08] [%emt 00:01:50]} 23.Bxd5 {[%clk
00:02:28] [%emt 00:05:36]} 23...Bxc3 {[%clk 00:11:27] [%emt 00:00:12]} 24.Bxc3 
{[%clk 00:02:28] [%emt 00:00:30]} 24...Bxd5 {[%clk 00:11:39] [%emt 00:00:17]} 
25.exd5 {[%clk 00:02:55] [%emt 00:00:04]} 25...Qxd5+ {[%clk 00:11:58] [%emt
00:00:11]} 26.Kc1 {[%clk 00:03:07] [%emt 00:00:18]} 26...Nc6 {[%clk 00:03:30]
[%emt 00:08:59]} 27.Re1 {[%clk 00:00:40] [%emt 00:02:56]} 27...Rxe1+ {[%clk
00:01:01] [%emt 00:02:59]} 28.Bxe1 {[%clk 00:01:08] [%emt 00:00:02]} 28...Nd4 
{[%clk 00:01:29] [%emt 00:00:02]} 29.Bc3 {[%clk 00:00:38] [%emt 00:00:59]} 
29...Nb3+ {[%clk 00:01:52] [%emt 00:00:07]} 30.Kc2 {[%clk 00:00:41] [%emt
00:00:27]} 30...Na1+ {[%clk 00:02:15] [%emt 00:00:07]} 31.Kb1 {[%clk 00:00:33]
[%emt 00:00:39]} 31...Qd1+ {[%clk 00:02:38] [%emt 00:00:06]} 32.Ka2 {[%clk
00:00:43] [%emt 00:00:20]} 32...Nb3 {[%clk 00:02:55] [%emt 00:00:13]} 33.f4 
{[%clk 00:00:45] [%emt 00:00:28]} 33...h5 {[%clk 00:00:44] [%emt 00:02:41]} 
34.Bxa5 {[%clk 00:00:39] [%emt 00:00:37]} 34...Nc1+ {[%clk 00:01:06] [%emt
00:00:08]} 35.Kb1 {[%clk 00:00:59] [%emt 00:00:09]} 35...Ne2+ {[%clk 00:01:27]
[%emt 00:00:09]} 36.Ka2 {[%clk 00:01:23] [%emt 00:00:06]} 36...Qc2 {[%clk
00:00:41] [%emt 00:01:17]} 37.Qd5 {[%clk 00:00:49] [%emt 00:01:03]} 37...Nc1+ 
{[%clk 00:00:40] [%emt 00:00:31]} 38.Ka1 {[%clk 00:01:18]} 38...Nb3+ {[%clk
00:00:37] [%emt 00:00:34]} 39.Ka2 {[%clk 00:01:47] [%emt 00:00:01]} 39...Nc1+ 
{[%clk 00:00:43] [%emt 00:00:24]} 40.Ka1 {[%clk 00:01:55] [%emt 00:00:22]} 
40...Nb3+ {[%clk 00:00:35] [%emt 00:00:37]} 41.Ka2 {[%clk 00:01:43] [%emt
00:00:42]} 41...Nc1+ {[%clk 00:44:07] [%emt 00:06:58]} 1/2-1/2